bitfinex/quotes_SOLUSD_20250619
["timestamp","ask_amount","ask_price","bid_price","bid_amount"]
[1750364163343,18.64964886,146.09,146.05,6.84697021]
[1750364163543,11.14698686,146.08,146.05,6.84697021]
[1750364164722,18.64964886,146.09,146.05,6.84697021]
[1750364164923,11.14698686,146.08,146.04,23.96603669]
[1750364165956,11.14698686,146.08,146.04,35.11302355]
[1750364168354,29.79663572,146.09,146.04,35.11302355]
[1750364169654,29.79663572,146.09,146.04,23.96603669]
[1750364169952,29.79663572,146.09,146.04,35.11302355]
[1750364170157,29.79663572,146.09,146.04,69.35021883]
[1750364172046,11.14698686,146.08,146.04,69.35021883]
[1750364174265,11.14698686,146.08,146.04,58.20323197]
[1750364174454,11.14698686,146.08,146.04,69.35021883]
[1750364180265,18.64964886,146.09,146.04,69.35021883]
[1750364180471,11.14698686,146.08,146.04,69.35021883]
[1750364180863,7.09227126,146.08,146.04,65.29550323]
[1750364186374,7.09227126,146.08,146.04,58.20323197]
[1750364186569,18.64964886,146.09,146.04,65.29550323]
[1750364186768,7.09227126,146.08,146.04,65.29550323]
[1750364191364,7.09227126,146.08,146.04,58.20323197]
[1750364191570,7.09227126,146.06,146.04,23.96603669]
[1750364191970,18.64964886,146.07,146.04,23.96603669]
[1750364192172,7.09227126,146.06,146.04,23.96603669]
[1750364193685,7.09227126,146.06,146.04,17.11859764]
[1750364194571,7.09227126,146.05,146.03,6.84790796]
[1750364194997,12.18440678,146.06,146.03,23.96767787]
[1750364195199,7.09227126,146.06,146.03,23.96767787]
[1750364195791,12.18440678,146.06,146.03,23.96767787]
[1750364197773,7.09227126,146.06,146.03,23.96767787]
[1750364197997,25.74192012,146.07,146.03,31.05994913]
[1750364198201,5.129095,146.06,146.03,31.05994913]
[1750364198991,5.129095,146.06,146.03,23.96767787]
[1750364199166,2.5646657,146.05,146.03,23.96767787]
[1750364199598,7.6939854,146.06,146.03,23.96767787]
[1750364199799,2.56467909,146.05,146.03,23.96767787]
[1750364200706,12.22157757,146.06,146.03,23.96767787]
[1750364200885,2.56486333,146.05,146.03,23.96767787]
[1750364201204,5.12930631,146.06,146.03,31.05994913]
[1750364201205,2.56486333,146.06,146.03,31.05994913]
[1750364201499,7.69416964,146.07,146.03,58.89994913]
[1750364201812,5.12930631,146.07,146.03,58.89994913]
[1750364201971,5.12930631,146.08,146.05,7.09227126]
[1750364202176,5.12930631,146.09,146.05,7.09227126]
[1750364202401,2.56455033,146.08,146.05,7.09227126]
[1750364202606,5.12803678,146.09,146.05,7.09227126]
[1750364202816,2.56455021,146.08,146.07,7.09227126]
[1750364202985,5.12803678,146.1,146.07,7.09227126]
[1750364203185,2.56434409,146.09,146.07,7.09227126]
[1750364203486,5.12803678,146.1,146.07,7.09227126]
[1750364203707,2.56434357,146.09,146.07,7.09227126]
[1750364203916,2.56434357,146.09,146.08,6.84556407]
[1750364204421,5.12803678,146.1,146.08,13.93783533]
[1750364204602,5.12670799,146.12,146.08,31.05174551]
[1750364204914,7.69069575,146.11,146.08,31.05174551]
[1750364205112,5.12670799,146.11,146.08,31.05174551]
[1750364206811,5.12670799,146.11,146.08,35.03557039]
[1750364207819,2.56231646,146.11,146.08,35.03557039]
[1750364208004,7.68902445,146.12,146.1,17.9207231]
[1750364208203,7.68902445,146.13,146.1,17.9207231]
[1750364208398,5.12670799,146.13,146.1,17.9207231]
[1750364208603,16.20280413,146.14,146.1,17.9207231]
[1750364208811,2.56177412,146.13,146.1,35.03229051]
[1750364209212,16.20280413,146.15,146.11,11.07609614]
[1750364209395,11.07609614,146.15,146.11,11.07609614]
[1750364209595,7.68830072,146.15,146.11,11.07609614]
[1750364209801,11.07609614,146.15,146.11,11.07609614]
[1750364210096,18.76439686,146.15,146.11,11.07609614]
[1750364210299,11.07609614,146.15,146.12,6.84369011]
[1750364210522,18.76056118,146.15,146.12,6.84369011]
[1750364210813,11.07609614,146.15,146.12,6.84369011]
[1750364214010,11.07609614,146.14,146.12,6.84369011]
[1750364214219,7.68135566,146.16,146.12,6.84369011]
[1750364214407,11.07609614,146.14,146.12,6.84369011]
[1750364214591,11.07609614,146.14,146.1,28.18766355]
[1750364214592,11.07609614,146.14,146.11,6.84415851]
[1750364215803,11.07609614,146.12,146.11,6.84415851]
[1750364216739,11.07609614,146.12,146.09,6.84509548]
[1750364217231,7.68135566,146.15,146.09,6.84509548]
[1750364217523,11.07609614,146.13,146.09,17.92119162]
[1750364218129,11.07609614,146.13,146.09,35.03393034]
[1750364219502,11.07609614,146.13,146.09,23.9578342]
[1750364219703,11.07609614,146.13,146.09,35.03393034]
[1750364220422,11.07609614,146.14,146.1,11.07609614]
[1750364221513,11.07609614,146.13,146.11,6.84415851]
[1750364222111,11.07609614,146.12,146.11,6.84415851]
[1750364222313,11.07609614,146.13,146.11,6.84415851]
[1750364224029,7.6569216,146.15,146.1,6.84462696]
[1750364224232,11.07609614,146.13,146.1,6.84462696]
[1750364226231,11.07609614,146.14,146.1,17.9207231]
[1750364226745,11.07609614,146.19,146.11,27.82]
[1750364227043,11.07609614,146.17,146.11,27.82]
[1750364227211,11.07609614,146.15,146.1,52.23619437]
[1750364227412,20.28064886,146.17,146.1,35.03229051]
[1750364227709,11.07609614,146.16,146.11,11.07609614]
[1750364227910,11.07609614,146.16,146.12,11.07609614]
[1750364228422,18.64964886,146.17,146.1,23.95619437]
[1750364228620,18.64964886,146.17,146.13,6.84322178]
[1750364228621,11.07609614,146.16,146.13,6.84322178]
[1750364229347,18.64964886,146.17,146.13,35.02737239]
[1750364229348,11.07609614,146.17,146.13,35.02737239]
[1750364230132,18.64964886,146.18,146.13,35.02737239]
[1750364230337,11.07609614,146.17,146.13,35.02737239]
[1750364230727,18.64964886,146.18,146.14,11.07609614]
[1750364231032,29.725745,146.18,146.14,11.07609614]
[1750364231530,29.725745,146.18,146.13,35.02737239]
[1750364231731,18.64964886,146.18,146.13,35.02737239]
[1750364232115,29.725745,146.18,146.14,11.07609614]
[1750364232513,11.07609614,146.18,146.14,11.07609614]
[1750364232718,11.07609614,146.18,146.15,6.84228532]
[1750364232931,37.07609614,146.19,146.15,23.94799862]
[1750364233127,26.0,146.19,146.15,35.02409476]
[1750364233828,37.07609614,146.19,146.15,35.02409476]
[1750364234439,37.07609614,146.19,146.15,23.94799862]
[1750364234619,37.07609614,146.19,146.15,35.02409476]
[1750364236325,11.07609614,146.17,146.15,6.84228532]
[1750364237739,11.07609614,146.16,146.13,6.84322178]
[1750364237923,11.07609614,146.15,146.12,6.84369011]
[1750364238441,11.07609614,146.14,146.12,6.84369011]
[1750364239315,11.07609614,146.14,146.11,23.95449636]
[1750364243648,11.07609614,146.12,146.06,87.7]
[1750364243846,2.55256879,146.13,146.07,11.07609614]
[1750364244149,37.07609614,146.12,146.08,11.07609614]
[1750364244655,37.07609614,146.12,146.07,11.07609614]
[1750364244847,11.07609614,146.11,146.07,11.07609614]
[1750364245226,11.07609614,146.11,146.08,6.84556407]
[1750364250444,18.64964886,146.14,146.1,11.07609614]
[1750364250752,12.67119614,146.15,146.11,11.07609614]
[1750364250959,15.22918063,146.15,146.1,28.2]
[1750364251142,20.34263772,146.15,146.11,11.07609614]
[1750364251326,6.70855709,146.15,146.11,11.07609614]
[1750364251534,9.26690869,146.15,146.11,11.07609614]
[1750364252448,9.26690869,146.15,146.12,17.91978625]
[1750364252754,11.07609614,146.14,146.12,6.84369011]
[1750364253553,29.725745,146.14,146.12,6.84369011]
[1750364253928,29.725745,146.13,146.12,6.84369011]
[1750364254335,29.725745,146.13,146.11,17.11026019]
[1750364255870,18.64964886,146.13,146.11,17.11026019]
[1750364256365,18.64964886,146.14,146.11,35.03051484]
[1750364256854,17.78632357,146.15,146.11,35.03051484]
[1750364257051,20.34424083,146.15,146.11,35.03051484]
[1750364257359,11.07609614,146.14,146.11,23.9544187]
[1750364258556,11.07609614,146.14,146.11,17.11026019]
[1750364258747,20.34424083,146.15,146.11,28.18635633]
[1750364259355,7.67304469,146.15,146.11,28.18635633]
[1750364259658,55.725745,146.16,146.12,11.07609614]
[1750364259865,2.55831051,146.15,146.12,11.07609614]
[1750364260048,2.55834482,146.15,146.12,11.07609614]
[1750364260251,2.55834509,146.15,146.12,17.23609614]
[1750364260859,2.55834509,146.15,146.13,6.84322178]
[1750364261367,55.725745,146.16,146.13,6.84322178]
[1750364261568,2.55828963,146.15,146.13,6.84322178]
[1750364262796,55.725745,146.16,146.13,6.84322178]
[1750364262943,2.55828184,146.15,146.13,6.84322178]
[1750364263142,11.07609614,146.18,146.14,11.07609614]
[1750364263453,11.07609614,146.18,146.13,23.95127625]
[1750364263454,21.20775748,146.17,146.13,35.02737239]
[1750364263637,2.55810862,146.16,146.13,35.02737239]
[1750364264044,2.55810862,146.16,146.14,11.07609614]
[1750364264341,2.55810862,146.16,146.15,17.91838146]
[1750364264552,2.55810862,146.18,146.15,35.02409476]
[1750364264750,5.11406142,146.2,146.15,35.02409476]
[1750364264751,7.67217004,146.19,146.17,11.07609614]
[1750364264978,2.55810862,146.18,146.16,11.07609614]
[1750364265143,2.55810862,146.19,146.16,11.07609614]
[1750364265646,16.19015756,146.2,146.16,11.07609614]
[1750364265845,2.557674,146.19,146.16,11.07609614]
[1750364266354,2.557674,146.19,146.17,6.84134911]
[1750364266555,13.63377014,146.19,146.17,6.84134911]
[1750364268477,2.557674,146.19,146.16,17.91791332]
[1750364268682,21.20667104,146.19,146.16,17.91791332]
[1750364268849,18.64964886,146.19,146.16,17.91791332]
[1750364269544,18.64964886,146.19,146.16,6.84181718]
[1750364275596,18.64964886,146.19,146.16,17.91791332]
[1750364275796,18.64964886,146.19,146.16,35.02245628]
[1750364276099,5.11406142,146.2,146.18,6.8408811]
[1750364276392,7.66921688,146.2,146.18,6.8408811]
[1750364276995,26.0,146.19,146.18,6.8408811]
[1750364277187,26.0,146.19,146.16,23.94636014]
[1750364277385,26.0,146.19,146.16,35.02245628]
[1750364278500,18.64964886,146.2,146.17,11.07609614]
[1750364279699,18.64964886,146.2,146.18,6.8408811]
[1750364281488,4.08740503,146.22,146.19,11.07609614]
[1750364281786,4.08740503,146.22,146.21,17.9155736]
[1750364282097,4.08740503,146.22,146.21,45.9755736]
[1750364282301,4.08740503,146.22,146.21,144.75166974]
[1750364282503,1.4830959,146.26,146.25,11.07609614]
[1750364282719,1.4830959,146.26,146.25,45.21609614]
[1750364283078,1.4830959,146.26,146.25,46.86609614]
[1750364283276,1.4830959,146.26,146.25,53.31739614]
[1750364283720,1.4830959,146.26,146.25,60.15500297]
[1750364284004,1.4830959,146.26,146.25,49.07890683]
[1750364284188,1.4830959,146.26,146.25,52.05370297]
[1750364285617,1.4830959,146.26,146.25,52.03370297]
[1750364285916,1.4830959,146.26,146.25,40.95760683]
[1750364286782,18.64964886,146.25,146.19,23.9765093]
[1750364286991,11.07609614,146.24,146.2,11.07609614]
[1750364287190,11.07609614,146.24,146.19,58.06144606]
[1750364287510,11.07609614,146.24,146.2,11.07609614]
[1750364287688,11.07609614,146.24,146.2,39.13609614]
[1750364287886,11.07609614,146.24,146.2,28.06]
[1750364288101,1.4830959,146.26,146.21,11.07609614]
[1750364288302,11.07609614,146.25,146.21,11.07609614]
[1750364288687,20.13274476,146.26,146.22,6.83900971]
[1750364288893,11.07609614,146.25,146.22,6.83900971]
[1750364289617,12.55919204,146.26,146.22,63.05263012]
[1750364291612,1.4830959,146.26,146.22,63.05263012]
[1750364291905,12.55919204,146.26,146.22,63.05263012]
[1750364292087,1.4830959,146.26,146.22,63.05263012]
[1750364294110,12.55919204,146.26,146.22,63.05263012]
[1750364294684,12.55919204,146.26,146.22,150.75263012]
[1750364296783,11.07609614,146.25,146.22,139.67653398]
[1750364297220,12.55919204,146.26,146.22,139.67653398]
[1750364297999,12.55919204,146.26,146.22,150.75263012]
[1750364298297,11.07609614,146.25,146.22,51.97653398]
[1750364298480,11.07609614,146.25,146.22,34.87900971]
[1750364299915,11.07609614,146.24,146.22,34.87900971]
[1750364300700,1.4830959,146.26,146.22,34.87900971]
[1750364300701,11.07609614,146.23,146.22,34.87900971]
[1750364301018,11.07609614,146.24,146.22,6.83900971]
[1750364301518,11.07609614,146.23,146.22,6.83900971]
[1750364302192,11.07609614,146.23,146.21,34.83928011]
[1750364302730,11.07609614,146.23,146.21,6.83928011]
[1750364303601,11.07609614,146.23,146.19,6.06]
[1750364303789,11.07609614,146.23,146.2,34.83994528]
[1750364304396,11.07609614,146.21,146.19,12.90035375]
[1750364304595,11.07609614,146.21,146.15,6.06]
[1750364304596,29.725745,146.2,146.15,6.06]
[1750364304800,11.07609614,146.18,146.15,6.06]
[1750364305198,11.07609614,146.17,146.15,34.06]
[1750364305512,11.07609614,146.2,146.15,58.00799862]
[1750364305699,26.0,146.21,146.15,58.00799862]
[1750364305700,11.07609614,146.21,146.17,11.07609614]
[1750364306006,11.07609614,146.21,146.17,28.0]
[1750364306214,11.07609614,146.2,146.17,28.0]
[1750364307199,11.07609614,146.2,146.18,6.8408811]
[1750364308017,18.64964886,146.21,146.18,6.8408811]
[1750364308197,11.07609614,146.2,146.18,6.8408811]
[1750364308719,29.725745,146.21,146.18,6.8408811]
[1750364309308,11.07609614,146.2,146.18,23.94308386]
[1750364309618,29.725745,146.21,146.18,23.94308386]
[1750364309826,11.07609614,146.21,146.18,23.94308386]
[1750364310117,29.725745,146.21,146.18,23.94308386]
[1750364310315,11.07609614,146.21,146.18,23.94308386]
[1750364311014,31.382445,146.23,146.19,11.07609614]
[1750364311213,29.725745,146.23,146.19,11.07609614]
[1750364311422,29.725745,146.23,146.19,39.05609614]
[1750364311595,32.4594,146.25,146.2,11.07609614]
[1750364311596,18.64964886,146.24,146.2,11.07609614]
[1750364311803,18.64964886,146.24,146.21,27.98]
[1750364312199,29.725745,146.24,146.21,27.98]
[1750364312821,18.64964886,146.24,146.21,27.98]
[1750364313024,29.725745,146.24,146.22,6.83900971]
[1750364313413,18.64964886,146.24,146.22,6.83900971]
[1750364315918,29.725745,146.24,146.22,6.83900971]
[1750364316526,1.4830959,146.26,146.22,6.83900971]
[1750364316725,11.07609614,146.25,146.22,6.83900971]
[1750364318007,12.55919204,146.26,146.22,23.93653398]
[1750364318334,12.55919204,146.26,146.22,35.01263012]
[1750364318805,12.55919204,146.26,146.22,23.93653398]
[1750364319000,12.55919204,146.26,146.22,35.01263012]
[1750364323026,11.07609614,146.25,146.22,6.83900971]
[1750364323746,11.07609614,146.24,146.22,6.83900971]
[1750364323941,18.64964886,146.25,146.22,6.83900971]
[1750364324244,29.725745,146.25,146.22,6.83900971]
[1750364325434,11.07609614,146.24,146.22,6.83900971]
[1750364328643,11.07609614,146.23,146.21,12.85924247]
[1750364329315,11.07609614,146.24,146.21,12.85924247]
[1750364329620,11.07609614,146.23,146.21,12.85924247]
[1750364332439,11.07609614,146.22,146.21,6.02]
[1750364333144,29.725745,146.22,146.21,6.02]
[1750364333332,26.0,146.19,146.14,35.02549512]
[1750364333530,37.07609614,146.19,146.16,6.02]
[1750364334526,37.07609614,146.19,146.17,6.84134911]
[1750364334728,26.0,146.19,146.17,6.84134911]
[1750364335753,5.1143399,146.21,146.17,6.84134911]
[1750364335951,55.725745,146.22,146.18,11.07609614]
[1750364336149,55.725745,146.22,146.17,23.94472189]
[1750364336150,44.64964886,146.22,146.19,11.07609614]
[1750364336531,55.725745,146.22,146.19,6.84041316]
[1750364336932,55.725745,146.22,146.19,17.9165093]
[1750364336933,26.0,146.22,146.19,17.9165093]
[1750364337539,37.07609614,146.22,146.19,6.84041316]
[1750364338850,11.07609614,146.21,146.19,6.84041316]
[1750364339755,37.07609614,146.22,146.19,6.84041316]
[1750364339945,11.07609614,146.21,146.19,6.84041316]
[1750364340349,11.07609614,146.21,146.18,34.76069124]
[1750364340549,13.63194296,146.21,146.18,6.84069124]
[1750364340748,13.63194296,146.21,146.17,6.84134911]
[1750364340946,11.07609614,146.19,146.16,6.02]
[1750364341256,11.07609614,146.17,146.16,6.02]
[1750364341458,18.64964886,146.18,146.16,12.86178043]
[1750364341658,29.725745,146.18,146.16,12.86178043]
[1750364342038,11.07609614,146.17,146.16,6.02]
[1750364342242,29.725745,146.18,146.16,12.86181718]
[1750364343040,37.07609614,146.2,146.16,12.86181718]
[1750364343367,26.0,146.18,146.16,12.86181718]
[1750364345470,37.07609614,146.18,146.16,12.86181718]
[1750364345861,29.725745,146.17,146.16,6.02]
[1750364346778,36.56709411,146.17,146.12,6.84369011]
[1750364346980,36.56709411,146.17,146.12,12.80369011]
[1750364346981,11.07609614,146.15,146.12,12.80369011]
[1750364347759,11.07609614,146.14,146.12,12.80369011]
[1750364349252,11.07609614,146.13,146.12,5.96]
[1750364349453,29.725745,146.13,146.12,5.96]
[1750364353958,18.64964886,146.12,146.07,78.22]
[1750364354160,11.07609614,146.1,146.07,78.22]
[1750364354361,11.07609614,146.1,146.07,50.32]
[1750364354556,11.07609614,146.09,146.07,50.32]
[1750364354866,11.07609614,146.09,146.07,5.98]
[1750364355174,29.725745,146.08,146.07,5.98]
[1750364357974,55.725745,146.08,146.07,5.98]
[1750364358485,37.07609614,146.08,146.07,12.82603272]
[1750364360963,37.07609614,146.08,146.07,5.98]
[1750364363089,37.07609614,146.08,146.07,12.82603272]
[1750364363785,26.0,146.08,146.07,12.82603272]
[1750364370300,12.58099614,146.13,146.07,68.91721067]
[1750364370473,18.64964886,146.12,146.09,11.07609614]
[1750364370677,7.5762,146.17,146.1,11.07609614]
[1750364370882,7.5762,146.17,146.07,57.84111453]
[1750364370883,18.64964886,146.14,146.11,11.07609614]
[1750364371094,44.64964886,146.14,146.1,11.07609614]
[1750364371300,18.64964886,146.14,146.1,11.07609614]
[1750364371800,44.64964886,146.14,146.1,11.07609614]
[1750364372395,44.64964886,146.14,146.11,6.84415851]
[1750364377202,55.725745,146.14,146.11,6.84415851]
[1750364377399,11.07609614,146.13,146.11,6.84415851]
[1750364377702,55.725745,146.14,146.11,6.84415851]
[1750364377877,44.64964886,146.14,146.11,6.84415851]
[1750364378076,26.0,146.14,146.12,11.07609614]
[1750364378377,26.0,146.14,146.13,11.07609614]
[1750364378780,26.0,146.15,146.13,11.07609614]
[1750364379001,26.0,146.15,146.14,11.07609614]
[1750364379506,26.0,146.15,146.14,17.91884966]
[1750364380777,18.64964886,146.17,146.14,17.91884966]
[1750364380982,44.64964886,146.17,146.14,17.91884966]
[1750364384202,11.07609614,146.15,146.13,6.84322178]
[1750364384390,26.0,146.14,146.13,6.84322178]
[1750364384720,55.725745,146.14,146.09,17.11255931]
[1750364385018,11.07609614,146.13,146.1,12.80462696]
[1750364387408,18.64964886,146.13,146.1,23.8807231]
[1750364388310,37.07609614,146.14,146.1,23.8807231]
[1750364388690,37.07609614,146.14,146.1,12.80462696]
[1750364388884,37.07609614,146.14,146.1,23.8807231]
[1750364389308,37.07609614,146.14,146.1,111.5807231]
[1750364389718,37.07609614,146.14,146.1,128.69229051]
[1750364389920,26.0,146.14,146.11,11.07609614]
[1750364390286,26.0,146.14,146.12,6.84369011]
[1750364390500,26.0,146.14,146.12,94.54369011]
[1750364394817,37.07609614,146.14,146.12,87.7]
[1750364395384,37.07609614,146.14,146.11,94.54414062]
[1750364396388,11.07609614,146.14,146.11,94.54414062]
[1750364397185,11.07609614,146.14,146.11,87.7]
[1750364398512,11.07609614,146.14,146.11,94.54405234]
[1750364400218,18.64964886,146.13,146.11,94.54405234]
[1750364401322,18.64964886,146.13,146.11,6.84405234]
[1750364402707,18.64964886,146.15,146.11,17.92014848]
[1750364402907,18.64964886,146.15,146.12,11.07609614]
[1750364403105,5.10643538,146.17,146.14,11.07609614]
[1750364403306,18.64964886,146.17,146.15,11.07609614]
[1750364403609,18.64964886,146.17,146.14,133.49846303]
[1750364404321,11.07609614,146.16,146.14,87.7]
[1750364404619,18.64964886,146.15,146.14,87.7]
[1750364405931,16.18317327,146.17,146.14,94.54272576]
[1750364406130,18.64964886,146.16,146.14,94.54272576]
[1750364406821,18.64964886,146.17,146.14,133.4988219]
[1750364407026,18.64964886,146.17,146.15,11.07609614]
[1750364407503,18.64964886,146.2,146.16,11.07609614]
[1750364407699,2.55497485,146.19,146.17,11.07609614]
[1750364407904,2.55497485,146.19,146.17,17.91698054]
[1750364408508,23.7584422,146.2,146.17,17.91698054]
[1750364408735,2.55618507,146.19,146.17,17.91698054]
[1750364409226,2.55618507,146.19,146.16,133.49768526]
[1750364409398,13.63228121,146.19,146.16,122.42158912]
[1750364409810,18.64964886,146.18,146.16,115.58]
[1750364410006,18.64964886,146.18,146.16,87.7]
[1750364410522,18.64964886,146.18,146.12,11.07609614]
[1750364410523,18.64964886,146.16,146.12,11.07609614]
[1750364410717,29.725745,146.16,146.13,27.88]
[1750364410925,29.725745,146.16,146.12,126.65609614]
[1750364411600,29.725745,146.16,146.12,133.49949744]
[1750364413414,29.725745,146.16,146.12,122.4234013]
[1750364414426,29.725745,146.16,146.12,133.49949744]
[1750364415228,34.83494553,146.16,146.12,133.49949744]
[1750364415733,18.64964886,146.16,146.12,133.49949744]
[1750364415909,18.64964886,146.16,146.14,6.84275352]
[1750364417309,18.64964886,146.16,146.14,17.91884966]
[1750364418129,1.5852,146.17,146.14,6.84275352]
[1750364418312,4.14430306,146.17,146.14,17.91884966]
[1750364418631,5.11852021,146.16,146.14,17.91884966]
[1750364419036,23.76816907,146.16,146.14,6.84275352]
[1750364419530,18.64964886,146.16,146.14,6.84275352]
[1750364419731,18.64964886,146.15,146.13,45.79919181]
[1750364420025,18.64964886,146.15,146.13,34.72309567]
[1750364420228,19.50265301,146.17,146.12,98.77609614]
[1750364420229,36.56764397,146.16,146.12,98.77609614]
[1750364420417,2.55937684,146.15,146.12,87.7]
[1750364421328,21.2090257,146.14,146.12,87.7]
[1750364421534,18.64964886,146.14,146.12,87.7]
[1750364421711,29.725745,146.14,146.11,93.66]
[1750364421912,18.64964886,146.12,146.11,93.66]
[1750364424540,18.64964886,146.12,146.11,100.50415851]
[1750364424737,18.64964886,146.12,146.11,111.58025465]
[1750364425528,18.64964886,146.12,146.1,17.92049418]
[1750364425724,18.64964886,146.12,146.08,27.88]
[1750364425933,34.8447674,146.12,146.08,11.07609614]
[1750364426116,18.64964886,146.12,146.09,11.07609614]
[1750364426323,23.76867126,146.12,146.09,11.07609614]
[1750364426637,23.76867126,146.12,146.09,17.92074487]
[1750364427651,26.0,146.12,146.11,11.07609614]
[1750364427852,5.11795358,146.12,146.11,11.07609614]
[1750364428516,26.0,146.13,146.11,11.07609614]
[1750364428717,26.0,146.13,146.12,11.07609614]
[1750364428910,31.11810361,146.13,146.12,11.07609614]
[1750364430719,31.11810361,146.13,146.12,105.61978625]
[1750364432251,31.11810361,146.13,146.12,94.54369011]
[1750364433250,26.0,146.13,146.12,94.54369011]
[1750364434946,18.64964886,146.16,146.12,150.60901154]
[1750364435126,18.64964886,146.16,146.14,11.07609614]
[1750364437051,18.64964886,146.16,146.15,6.84228532]
[1750364437229,21.20877085,146.16,146.15,6.84228532]
[1750364439239,18.64964886,146.16,146.15,17.91838146]
[1750364439430,18.64964886,146.16,146.15,6.84228532]
[1750364439635,21.20865075,146.16,146.15,6.84228532]
[1750364439955,18.64964886,146.16,146.15,6.84228532]
[1750364440863,18.64964886,146.16,146.14,6.84275352]
[1750364442827,29.725745,146.16,146.13,6.84322178]
[1750364443151,18.64964886,146.12,146.11,6.84378173]
[1750364443363,29.725745,146.12,146.11,6.84378173]
[1750364443565,11.07609614,146.12,146.11,6.84378173]
[1750364443740,11.07609614,146.12,146.1,12.78445773]
[1750364444436,18.64964886,146.1,146.09,6.84484628]
[1750364444635,29.725745,146.1,146.07,6.84603272]
[1750364445047,29.725745,146.1,146.06,23.96274642]
[1750364445360,18.64964886,146.1,146.06,23.96274642]
[1750364445543,29.725745,146.1,146.06,23.96274642]
[1750364446330,29.725745,146.1,146.06,35.03884256]
[1750364447268,34.84181962,146.1,146.06,35.03884256]
[1750364447633,34.84181962,146.1,146.06,6.84650143]
[1750364447952,11.07609614,146.09,146.06,6.84650143]
[1750364448458,31.293445,146.1,146.06,17.92259757]
[1750364448660,5.11522989,146.09,146.06,35.03885116]
[1750364448837,23.76459859,146.1,146.06,35.03885116]
[1750364449369,18.64964886,146.1,146.06,35.03885116]
[1750364449575,34.83997347,146.1,146.06,35.03885116]
[1750364450475,18.64964886,146.1,146.06,35.03885116]
[1750364450680,34.83907688,146.1,146.06,35.03885116]
[1750364451783,34.83907688,146.1,146.06,23.96275502]
[1750364451995,34.83907688,146.1,146.06,35.03885116]
[1750364456981,29.725745,146.1,146.06,35.03885116]
[1750364459205,18.64964886,146.1,146.06,35.03885116]
[1750364459405,29.725745,146.1,146.06,35.03885116]
[1750364460409,11.07609614,146.09,146.06,6.84650143]
[1750364460584,18.64964886,146.08,146.06,6.84650143]
[1750364461076,29.725745,146.08,146.06,6.84650143]
[1750364461277,29.725745,146.08,146.05,12.78674995]
[1750364461888,18.64964886,146.08,146.05,23.86284609]
[1750364462295,18.64964886,146.08,146.05,12.78674995]
[1750364463216,18.64964886,146.08,146.05,23.86284609]
[1750364463806,18.64964886,146.08,146.05,40.98027162]
[1750364466112,18.64964886,146.08,146.05,68.84027162]
[1750364466614,18.64964886,146.08,146.05,57.76417548]
[1750364466793,18.64964886,146.08,146.05,68.84027162]
[1750364468512,18.64964886,146.09,146.05,68.84027162]
[1750364468713,29.725745,146.09,146.05,68.84027162]
[1750364469115,29.725745,146.09,146.05,57.76417548]
[1750364469417,11.07609614,146.08,146.05,57.76417548]
[1750364470017,11.07609614,146.08,146.05,40.64674995]
[1750364470216,11.07609614,146.07,146.05,12.78674995]
[1750364470414,18.64964886,146.06,146.05,12.78674995]
[1750364471213,29.725745,146.06,146.05,12.78674995]
[1750364472215,29.725745,146.06,146.05,5.94]
[1750364472421,26.0,146.03,146.02,6.84837693]
[1750364472618,55.725745,146.03,146.02,6.84837693]
[1750364472846,18.64964886,146.02,146.01,6.84873302]
[1750364473123,29.725745,146.02,146.01,6.84873302]
[1750364473324,18.64964886,146.02,146.01,6.84873302]
[1750364474302,7.6566,146.09,146.01,35.04694408]
[1750364474506,18.64964886,146.06,146.03,11.07609614]
[1750364474927,29.725745,146.06,146.02,11.07609614]
[1750364475727,29.725745,146.06,146.03,6.84790796]
[1750364477323,11.07609614,146.04,146.03,6.84790796]
[1750364477693,11.07609614,146.04,146.02,6.84837693]
[1750364477890,29.725745,146.03,146.02,6.84837693]
[1750364478814,18.64964886,146.03,146.02,6.84837693]
[1750364479419,18.64964886,146.03,146.02,17.92447307]
[1750364481212,18.64964886,146.03,146.02,45.78447307]
[1750364481915,18.64964886,146.03,146.02,34.70837693]
[1750364482106,18.64964886,146.03,146.02,45.78447307]
[1750364484239,18.64964886,146.03,146.02,34.70837693]
[1750364487823,18.64964886,146.03,146.02,45.78447307]
[1750364500252,26.0,146.07,146.02,62.9054154]
[1750364500453,18.64964886,146.06,146.05,11.07609614]
[1750364500627,18.64964886,146.06,146.05,45.78306635]
[1750364500946,18.64964886,146.09,146.05,62.90049188]
[1750364501142,18.64964886,146.09,146.05,51.82439574]
[1750364501332,18.64964886,146.09,146.06,11.07609614]
[1750364501531,18.64964886,146.09,146.07,27.86]
[1750364502740,18.64964886,146.09,146.08,6.84556407]
[1750364503043,2.56065507,146.09,146.08,6.84556407]
[1750364503222,23.76997409,146.1,146.08,6.84556407]
[1750364503429,18.64964886,146.1,146.08,6.84556407]